Workbook

Sheet Tabelle1
B1: Version | C1: Visible Tracklenght | D1: Map | E1: Recording | F1: Navigation | G1: Sensor Debug | H1: Screen | I1: Starttime | J1: row | K1: cpu 90min 1 | L1: cpu 90min 2 | M1: cpu 90min 3 | N1: cpu 90min 4 | O1: cpu 90min 5 | P1: cpu 90min 6 | Q1: cpu 90min 1 | R1: cpu 90min 2 | S1: cpu 90min 3 | T1: cpu 90min 4 | U1: cpu 90min 5 | V1: cpu 90min 6 | W1: result description
A2: Baseline 0 | B2: 3.45.0 | C2: 150km elevation style | D2: empty | E2: off | F2: off | G2: off | H2: Dashboard with Altitude diagramm | I2: 2020-04-27T10:50:30 | J2: 12 | K2: =SUM(OFFSET(Tabelle2!$C$1:$D$1,$J2-1+18,0))-SUM(OFFSET(Tabelle2!$C$1:$D$1,$J2-1,0)) -> 199431 | L2: =SUM(OFFSET(Tabelle2!$C$1:$D$1,$J2-1+36,0))-SUM(OFFSET(Tabelle2!$C$1:$D$1,$J2-1+18,0)) -> 200996 | M2: =SUM(OFFSET(Tabelle2!$C$1:$D$1,$J2-1+54,0))-SUM(OFFSET(Tabelle2!$C$1:$D$1,$J2-1+36,0)) -> 200710 | N2: =SUM(OFFSET(Tabelle2!$C$1:$D$1,$J2-1+72,0))-SUM(OFFSET(Tabelle2!$C$1:$D$1,$J2-1+54,0)) -> 200567 | O2: =SUM(OFFSET(Tabelle2!$C$1:$D$1,$J2-1+90,0))-SUM(OFFSET(Tabelle2!$C$1:$D$1,$J2-1+72,0)) -> 201648 | P2: =SUM(OFFSET(Tabelle2!$C$1:$D$1,$J2-1+108,0))-SUM(OFFSET(Tabelle2!$C$1:$D$1,$J2-1+90,0)) -> 202807 | Q2: =K2/AVERAGE($K$3:$P$3) -> 84% | R2: =L2/AVERAGE($K$3:$P$3) -> 85% | S2: =M2/AVERAGE($K$3:$P$3) -> 85% | T2: =N2/AVERAGE($K$3:$P$3) -> 85% | U2: =O2/AVERAGE($K$3:$P$3) -> 85% | V2: =P2/AVERAGE($K$3:$P$3) -> 86% | W2: testfailure? Maybe forgot gps simulation
A3: Baseline 1 | B3: 3.45.0 | C3: 150km elevation style | D3: empty | E3: off | F3: off | G3: off | H3: Dashboard with Altitude diagramm | I3: 2020-04-27T19:55:00 | J3: 122 | K3: =SUM(OFFSET(Tabelle2!$C$1:$D$1,$J3-1+18,0))-SUM(OFFSET(Tabelle2!$C$1:$D$1,$J3-1,0)) -> 237431 | L3: =SUM(OFFSET(Tabelle2!$C$1:$D$1,$J3-1+36,0))-SUM(OFFSET(Tabelle2!$C$1:$D$1,$J3-1+18,0)) -> 237104 | M3: =SUM(OFFSET(Tabelle2!$C$1:$D$1,$J3-1+54,0))-SUM(OFFSET(Tabelle2!$C$1:$D$1,$J3-1+36,0)) -> 236921 | N3: =SUM(OFFSET(Tabelle2!$C$1:$D$1,$J3-1+72,0))-SUM(OFFSET(Tabelle2!$C$1:$D$1,$J3-1+54,0)) -> 237267 | O3: =SUM(OFFSET(Tabelle2!$C$1:$D$1,$J3-1+90,0))-SUM(OFFSET(Tabelle2!$C$1:$D$1,$J3-1+72,0)) -> 236777 | P3: =SUM(OFFSET(Tabelle2!$C$1:$D$1,$J3-1+108,0))-SUM(OFFSET(Tabelle2!$C$1:$D$1,$J3-1+90,0)) -> 236681 | Q3: =K3/AVERAGE($K$3:$P$3) -> 100% | R3: =L3/AVERAGE($K$3:$P$3) -> 100% | S3: 100% | T3: 100% | U3: 100% | V3: 100%
A4: Baseline 2 | B4: 3.45.0 | C4: 150km elevation style | D4: empty | E4: off | F4: off | G4: off | H4: Dashboard with Altitude diagramm | I4: 2020-04-29T07:10:00 | J4: 390 | K4: =SUM(OFFSET(Tabelle2!$C$1:$D$1,$J4-1+18,0))-SUM(OFFSET(Tabelle2!$C$1:$D$1,$J4-1,0)) -> 236964 | L4: =SUM(OFFSET(Tabelle2!$C$1:$D$1,$J4-1+36,0))-SUM(OFFSET(Tabelle2!$C$1:$D$1,$J4-1+18,0)) -> 236285 | M4: =SUM(OFFSET(Tabelle2!$C$1:$D$1,$J4-1+54,0))-SUM(OFFSET(Tabelle2!$C$1:$D$1,$J4-1+36,0)) -> 236625 | N4: =SUM(OFFSET(Tabelle2!$C$1:$D$1,$J4-1+72,0))-SUM(OFFSET(Tabelle2!$C$1:$D$1,$J4-1+54,0)) -> 236789 | O4: =SUM(OFFSET(Tabelle2!$C$1:$D$1,$J4-1+90,0))-SUM(OFFSET(Tabelle2!$C$1:$D$1,$J4-1+72,0)) -> 236605 | P4: =SUM(OFFSET(Tabelle2!$C$1:$D$1,$J4-1+108,0))-SUM(OFFSET(Tabelle2!$C$1:$D$1,$J4-1+90,0)) -> 236693 | Q4: =K4/AVERAGE($K$3:$P$3) -> 100% | R4: =L4/AVERAGE($K$3:$P$3) -> 100% | S4: =M4/AVERAGE($K$3:$P$3) -> 100% | T4: =N4/AVERAGE($K$3:$P$3) -> 100% | U4: =O4/AVERAGE($K$3:$P$3) -> 100% | V4: =P4/AVERAGE($K$3:$P$3) -> 100%
A5: Record 1 | B5: 3.45.0 | C5: 150km elevation style | D5: empty | E5: 1s | 1m | 100m, everything off | F5: off | G5: off | H5: Dashboard with Altitude diagramm | I5: 2020-04-28T21:25:00 | J5: 273 | K5: =SUM(OFFSET(Tabelle2!$C$1:$D$1,$J5-1+18,0))-SUM(OFFSET(Tabelle2!$C$1:$D$1,$J5-1,0)) -> 242415 | L5: =SUM(OFFSET(Tabelle2!$C$1:$D$1,$J5-1+36,0))-SUM(OFFSET(Tabelle2!$C$1:$D$1,$J5-1+18,0)) -> 256931 | M5: =SUM(OFFSET(Tabelle2!$C$1:$D$1,$J5-1+54,0))-SUM(OFFSET(Tabelle2!$C$1:$D$1,$J5-1+36,0)) -> 271187 | N5: =SUM(OFFSET(Tabelle2!$C$1:$D$1,$J5-1+72,0))-SUM(OFFSET(Tabelle2!$C$1:$D$1,$J5-1+54,0)) -> 289448 | O5: =SUM(OFFSET(Tabelle2!$C$1:$D$1,$J5-1+90,0))-SUM(OFFSET(Tabelle2!$C$1:$D$1,$J5-1+72,0)) -> 307481 | P5: =SUM(OFFSET(Tabelle2!$C$1:$D$1,$J5-1+108,0))-SUM(OFFSET(Tabelle2!$C$1:$D$1,$J5-1+90,0)) -> 325815 | Q5: 102% | R5: 108% | S5: 114% | T5: 122% | U5: 130% | V5: 137% | W5: infinit cpu time raise by 7% per 90 minutes
A6: Record 2 | B6: 3.45.0 | C6: 150km elevation style | D6: empty | E6: 1s | 1m | 100m, everything off | F6: off | G6: off | H6: Dashboard with Altitude diagramm | I6: 2020-04-29T16:15:00 | J6: 499 | K6: =SUM(OFFSET(Tabelle2!$C$1:$D$1,$J6-1+18,0))-SUM(OFFSET(Tabelle2!$C$1:$D$1,$J6-1,0)) -> 244251 | L6: =SUM(OFFSET(Tabelle2!$C$1:$D$1,$J6-1+36,0))-SUM(OFFSET(Tabelle2!$C$1:$D$1,$J6-1+18,0)) -> 259809 | M6: =SUM(OFFSET(Tabelle2!$C$1:$D$1,$J6-1+54,0))-SUM(OFFSET(Tabelle2!$C$1:$D$1,$J6-1+36,0)) -> 271384 | N6: =SUM(OFFSET(Tabelle2!$C$1:$D$1,$J6-1+72,0))-SUM(OFFSET(Tabelle2!$C$1:$D$1,$J6-1+54,0)) -> 291662 | O6: =SUM(OFFSET(Tabelle2!$C$1:$D$1,$J6-1+90,0))-SUM(OFFSET(Tabelle2!$C$1:$D$1,$J6-1+72,0)) -> 308909 | P6: =SUM(OFFSET(Tabelle2!$C$1:$D$1,$J6-1+108,0))-SUM(OFFSET(Tabelle2!$C$1:$D$1,$J6-1+90,0)) -> 329202 | Q6: 103% | R6: 110% | S6: 114% | T6: 123% | U6: 130% | V6: 139% | W6: infinit cpu time raise by 7% per 90 minutes
A7: Navigation 1 | B7: 3.45.0 | C7: 150km elevation style | D7: empty | E7: off | F7: Guidance 150km | G7: off | H7: Dashboard with Altitude diagramm | I7: 2020-04-30T01:20:00 | J7: 608 | K7: =SUM(OFFSET(Tabelle2!$C$1:$D$1,$J7-1+18,0))-SUM(OFFSET(Tabelle2!$C$1:$D$1,$J7-1,0)) -> 252449 | L7: =SUM(OFFSET(Tabelle2!$C$1:$D$1,$J7-1+36,0))-SUM(OFFSET(Tabelle2!$C$1:$D$1,$J7-1+18,0)) -> 276213 | M7: =SUM(OFFSET(Tabelle2!$C$1:$D$1,$J7-1+54,0))-SUM(OFFSET(Tabelle2!$C$1:$D$1,$J7-1+36,0)) -> 275446 | N7: =SUM(OFFSET(Tabelle2!$C$1:$D$1,$J7-1+72,0))-SUM(OFFSET(Tabelle2!$C$1:$D$1,$J7-1+54,0)) -> 277814 | O7: =SUM(OFFSET(Tabelle2!$C$1:$D$1,$J7-1+90,0))-SUM(OFFSET(Tabelle2!$C$1:$D$1,$J7-1+72,0)) -> 274921 | P7: =SUM(OFFSET(Tabelle2!$C$1:$D$1,$J7-1+108,0))-SUM(OFFSET(Tabelle2!$C$1:$D$1,$J7-1+90,0)) -> 271160 | Q7: 107% | R7: 117% | S7: 116% | T7: 117% | U7: 116% | V7: 114% | W7: +7% for nearby point, +16% for next point is 30 to 90minutes away
A8: Navigation 2 | B8: 3.45.0 | C8: 150km elevation style | D8: empty | E8: off | F8: Guidance 150km | G8: off | H8: Dashboard with Altitude diagramm | I8: 2020-04-30T10:30:00 | J8: 718 | K8: =SUM(OFFSET(Tabelle2!$C$1:$D$1,$J8-1+18,0))-SUM(OFFSET(Tabelle2!$C$1:$D$1,$J8-1,0)) -> 243977 | L8: =SUM(OFFSET(Tabelle2!$C$1:$D$1,$J8-1+36,0))-SUM(OFFSET(Tabelle2!$C$1:$D$1,$J8-1+18,0)) -> 263455 | M8: =SUM(OFFSET(Tabelle2!$C$1:$D$1,$J8-1+54,0))-SUM(OFFSET(Tabelle2!$C$1:$D$1,$J8-1+36,0)) -> 268105 | Q8: =K8/AVERAGE($K$3:$P$3) -> 103% | R8: =L8/AVERAGE($K$3:$P$3) -> 111% | S8: 113%
A9: Sensor Debug 1 | B9: 3.45.0 | C9: 150km elevation style | D9: empty | E9: off | F9: off | G9: off | H9: Dashboard with Altitude diagramm | Q9: =K9/AVERAGE($K$3:$P$3) -> 0% | R9: =L9/AVERAGE($K$3:$P$3) -> 0% | S9: =M9/AVERAGE($K$3:$P$3) -> 0% | T9: =N9/AVERAGE($K$3:$P$3) -> 0% | U9: =O9/AVERAGE($K$3:$P$3) -> 0% | V9: =P9/AVERAGE($K$3:$P$3) -> 0%
A10: Sensor Debug 2 | B10: 3.45.0 | C10: 150km elevation style | D10: empty | E10: off | F10: off | G10: off | H10: Dashboard with Altitude diagramm | Q10: =K10/AVERAGE($K$3:$P$3) -> 0% | R10: =L10/AVERAGE($K$3:$P$3) -> 0% | S10: =M10/AVERAGE($K$3:$P$3) -> 0% | T10: =N10/AVERAGE($K$3:$P$3) -> 0% | U10: =O10/AVERAGE($K$3:$P$3) -> 0% | V10: =P10/AVERAGE($K$3:$P$3) -> 0%
A11: Navigation 3 | B11: 3.45.0 | C11: 150km elevation style | D11: empty | E11: off | F11: Guidance 150km | G11: off | H11: Map, GPS center | I11: 2020-04-30T15:15:00 | Q11: 0% | R11: 0% | S11: 0% | T11: 0% | U11: 0% | V11: 0%
A12: Navigation 4 | B12: 3.45.0 | C12: 150km elevation style | D12: empty | E12: off | F12: Guidance 150km | G12: off | H12: Map, GPS center | Q12: 0% | R12: 0% | S12: 0% | T12: 0% | U12: 0% | V12: 0%

Sheet Tabelle2
A1: Date | B1: Time | C1: utime | D1: stime | E1: timediff
A2: 27.04.20 | B2: 10.10 | C2: 2263 | D2: 457 | E2: =SUM(C2:D2)-SUM(C1:D1) -> 2720
A3: 27.04.20 | B3: 10.12 | C3: 2348 | D3: 468 | E3: =SUM(C3:D3)-SUM(C2:D2) -> 96
A4: 27.04.20 | B4: 10.15 | C4: 2896 | D4: 594 | E4: =SUM(C4:D4)-SUM(C3:D3) -> 674
A5: 27.04.20 | B5: 10.20 | C5: 4585 | D5: 1016 | E5: 2111
A6: 27.04.20 | B6: 10.25 | C6: 6302 | D6: 1411 | E6: 2112
A7: 27.04.20 | B7: 10.30 | C7: 7982 | D7: 1839 | E7: 2108
A8: 27.04.20 | B8: 10.35 | C8: 10055 | D8: 2306 | E8: 2540
A9: 27.04.20 | B9: 10.40 | C9: 12480 | D9: 2906 | E9: 3025
A10: 27.04.20 | B10: 10.45 | C10: 16059 | D10: 3672 | E10: 4345
A11: 27.04.20 | B11: 10.50 | C11: 1070 | D11: 218 | E11: -18443
A12: 27.04.20 | B12: 10.50 | C12: 1737 | D12: 352 | E12: 801
A13: 27.04.20 | B13: 10.55 | C13: 10149 | D13: 1726 | E13: 9786
A14: 27.04.20 | B14: 11.00 | C14: 19775 | D14: 3271 | E14: 11171
A15: 27.04.20 | B15: 11.05 | C15: 29270 | D15: 4847 | E15: 11071
A16: 27.04.20 | B16: 11.10 | C16: 38935 | D16: 6439 | E16: 11257
A17: 27.04.20 | B17: 11.15 | C17: 48553 | D17: 7979 | E17: 11158
A18: 27.04.20 | B18: 11.20 | C18: 58015 | D18: 9622 | E18: 11105
A19: 27.04.20 | B19: 11.25 | C19: 67588 | D19: 11178 | E19: 11129
A20: 27.04.20 | B20: 11.30 | C20: 77195 | D20: 12754 | E20: 11183
A21: 27.04.20 | B21: 11.35 | C21: 86814 | D21: 14299 | E21: 11164
A22: 27.04.20 | B22: 11.40 | C22: 96421 | D22: 15838 | E22: 11146
A23: 27.04.20 | B23: 11.45 | C23: 106031 | D23: 17375 | E23: 11147
A24: 27.04.20 | B24: 11.50 | C24: 115602 | D24: 18920 | E24: 11116
A25: 27.04.20 | B25: 11.55 | C25: 125177 | D25: 20515 | E25: 11170
A26: 27.04.20 | B26: 12.00 | C26: 134833 | D26: 22088 | E26: 11229
A27: 27.04.20 | B27: 12.05 | C27: 144375 | D27: 23641 | E27: 11095
A28: 27.04.20 | B28: 12.10 | C28: 154018 | D28: 25214 | E28: 11216
A29: 27.04.20 | B29: 12.15 | C29: 163610 | D29: 26723 | E29: 11101
A30: 27.04.20 | B30: 12.20 | C30: 173230 | D30: 28290 | E30: 11187
A31: 27.04.20 | B31: 12.25 | C31: 182802 | D31: 29941 | E31: 11223
A32: 27.04.20 | B32: 12.30 | C32: 192334 | D32: 31511 | E32: 11102
A33: 27.04.20 | B33: 12.35 | C33: 201995 | D33: 33046 | E33: 11196
A34: 27.04.20 | B34: 12.40 | C34: 211541 | D34: 34625 | E34: 11125
A35: 27.04.20 | B35: 12.45 | C35: 221158 | D35: 36272 | E35: 11264
A36: 27.04.20 | B36: 12.50 | C36: 230751 | D36: 37847 | E36: 11168
A37: 27.04.20 | B37: 12.55 | C37: 240334 | D37: 39381 | E37: 11117
A38: 27.04.20 | B38: 13.00 | C38: 249929 | D38: 40958 | E38: 11172
A39: 27.04.20 | B39: 13.05 | C39: 259530 | D39: 42539 | E39: 11182
A40: 27.04.20 | B40: 13.10 | C40: 269093 | D40: 44108 | E40: 11132
A41: 27.04.20 | B41: 13.15 | C41: 278693 | D41: 45648 | E41: 11140
A42: 27.04.20 | B42: 13.20 | C42: 288306 | D42: 47201 | E42: 11166
A43: 27.04.20 | B43: 13.25 | C43: 297898 | D43: 48777 | E43: 11168
A44: 27.04.20 | B44: 13.30 | C44: 307513 | D44: 50311 | E44: 11149
A45: 27.04.20 | B45: 13.35 | C45: 317134 | D45: 51929 | E45: 11239
A46: 27.04.20 | B46: 13.40 | C46: 326756 | D46: 53493 | E46: 11186
A47: 27.04.20 | B47: 13.45 | C47: 336353 | D47: 55039 | E47: 11143
A48: 27.04.20 | B48: 13.50 | C48: 345946 | D48: 56570 | E48: 11124
A49: 27.04.20 | B49: 13.55 | C49: 355491 | D49: 58168 | E49: 11143
A50: 27.04.20 | B50: 14.00 | C50: 365024 | D50: 59749 | E50: 11114
A51: 27.04.20 | B51: 14.05 | C51: 374639 | D51: 61312 | E51: 11178
A52: 27.04.20 | B52: 14.10 | C52: 384274 | D52: 62858 | E52: 11181
A53: 27.04.20 | B53: 14.15 | C53: 393838 | D53: 64416 | E53: 11122
A54: 27.04.20 | B54: 14.20 | C54: 403414 | D54: 66024 | E54: 11184
A55: 27.04.20 | B55: 14.25 | C55: 412882 | D55: 67673 | E55: 11117
A56: 27.04.20 | B56: 14.30 | C56: 422437 | D56: 69258 | E56: 11140
A57: 27.04.20 | B57: 14.35 | C57: 431965 | D57: 70845 | E57: 11115
A58: 27.04.20 | B58: 14.40 | C58: 441541 | D58: 72404 | E58: 11135
A59: 27.04.20 | B59: 14.45 | C59: 451147 | D59: 73925 | E59: 11127
A60: 27.04.20 | B60: 14.50 | C60: 460662 | D60: 75480 | E60: 11070
A61: 27.04.20 | B61: 14.55 | C61: 470218 | D61: 77070 | E61: 11146
A62: 27.04.20 | B62: 15.00 | C62: 479776 | D62: 78738 | E62: 11226
A63: 27.04.20 | B63: 15.05 | C63: 489370 | D63: 80285 | E63: 11141
A64: 27.04.20 | B64: 15.10 | C64: 498926 | D64: 81886 | E64: 11157
A65: 27.04.20 | B65: 15.15 | C65: 508588 | D65: 83463 | E65: 11239
A66: 27.04.20 | B66: 15.20 | C66: 518180 | D66: 85046 | E66: 11175
A67: 27.04.20 | B67: 15.25 | C67: 527742 | D67: 86619 | E67: 11135
A68: 27.04.20 | B68: 15.30 | C68: 537291 | D68: 88171 | E68: =SUM(C68:D68)-SUM(C67:D67) -> 11101
A69: 27.04.20 | B69: 15.35 | C69: 546779 | D69: 89787 | E69: 11104
A70: 27.04.20 | B70: 15.40 | C70: 556456 | D70: 91337 | E70: 11227
A71: 27.04.20 | B71: 15.45 | C71: 566070 | D71: 92886 | E71: 11163
A72: 27.04.20 | B72: 15.50 | C72: 575710 | D72: 94503 | E72: 11257
A73: 27.04.20 | B73: 15.55 | C73: 585263 | D73: 96058 | E73: 11108
A74: 27.04.20 | B74: 16.00 | C74: 594884 | D74: 97600 | E74: 11163
A75: 27.04.20 | B75: 16.05 | C75: 604394 | D75: 99216 | E75: 11126
A76: 27.04.20 | B76: 16.10 | C76: 613897 | D76: 100848 | E76: 11135
A77: 27.04.20 | B77: 16.15 | C77: 623374 | D77: 102447 | E77: 11076
A78: 27.04.20 | B78: 16.20 | C78: 632956 | D78: 103973 | E78: 11108
A79: 27.04.20 | B79: 16.25 | C79: 642520 | D79: 105499 | E79: 11090
A80: 27.04.20 | B80: 16.30 | C80: 652089 | D80: 107082 | E80: 11152
A81: 27.04.20 | B81: 16.35 | C81: 661719 | D81: 108650 | E81: 11198
A82: 27.04.20 | B82: 16.40 | C82: 671285 | D82: 110156 | E82: 11072
A83: 27.04.20 | B83: 16.45 | C83: 680936 | D83: 111705 | E83: 11200
A84: 27.04.20 | B84: 16.50 | C84: 690528 | D84: 113265 | E84: 11152
A85: 27.04.20 | B85: 16.55 | C85: 700044 | D85: 114871 | E85: 11122
A86: 27.04.20 | B86: 17.00 | C86: 709773 | D86: 116404 | E86: 11262
A87: 27.04.20 | B87: 17.05 | C87: 719364 | D87: 117977 | E87: 11164
A88: 27.04.20 | B88: 17.10 | C88: 728996 | D88: 119567 | E88: 11222
A89: 27.04.20 | B89: 17.15 | C89: 738563 | D89: 121113 | E89: 11113
A90: 27.04.20 | B90: 17.20 | C90: 748205 | D90: 122698 | E90: 11227
A91: 27.04.20 | B91: 17.25 | C91: 757770 | D91: 124319 | E91: 11186
A92: 27.04.20 | B92: 17.30 | C92: 767329 | D92: 125873 | E92: 11113
A93: 27.04.20 | B93: 17.35 | C93: 776874 | D93: 127486 | E93: 11158
A94: 27.04.20 | B94: 17.40 | C94: 786436 | D94: 129108 | E94: 11184
A95: 27.04.20 | B95: 17.45 | C95: 795938 | D95: 130669 | E95: 11063
A96: 27.04.20 | B96: 17.50 | C96: 805570 | D96: 132281 | E96: 11244
A97: 27.04.20 | B97: 17.55 | C97: 815150 | D97: 133908 | E97: 11207
A98: 27.04.20 | B98: 18.00 | C98: 824725 | D98: 135597 | E98: 11264
A99: 27.04.20 | B99: 18.05 | C99: 834347 | D99: 137182 | E99: 11207
A100: 27.04.20 | B100: 18.10 | C100: 843998 | D100: 138854 | E100: 11323
A101: 27.04.20 | B101: 18.15 | C101: 853676 | D101: 140489 | E101: 11313
A102: 27.04.20 | B102: 18.20 | C102: 863295 | D102: 142146 | E102: 11276
A103: 27.04.20 | B103: 18.25 | C103: 872894 | D103: 143796 | E103: 11249
A104: 27.04.20 | B104: 18.30 | C104: 882574 | D104: 145438 | E104: 11322
A105: 27.04.20 | B105: 18.35 | C105: 892202 | D105: 147110 | E105: 11300
A106: 27.04.20 | B106: 18.40 | C106: 901739 | D106: 148778 | E106: 11205
A107: 27.04.20 | B107: 18.45 | C107: 911390 | D107: 150408 | E107: 11281
A108: 27.04.20 | B108: 18.50 | C108: 921028 | D108: 152064 | E108: 11294
A109: 27.04.20 | B109: 18.55 | C109: 930662 | D109: 153691 | E109: 11261
A110: 27.04.20 | B110: 19.00 | C110: 940333 | D110: 155348 | E110: 11328
A111: 27.04.20 | B111: 19.05 | C111: 949960 | D111: 156976 | E111: 11255
A112: 27.04.20 | B112: 19.10 | C112: 959528 | D112: 158716 | E112: 11308
A113: 27.04.20 | B113: 19.15 | C113: 969181 | D113: 160369 | E113: 11306
A114: 27.04.20 | B114: 19.20 | C114: 978786 | D114: 161992 | E114: 11228
A115: 27.04.20 | B115: 19.25 | C115: 988335 | D115: 163654 | E115: 11211
A116: 27.04.20 | B116: 19.30 | C116: 997885 | D116: 165329 | E116: 11225
A117: 27.04.20 | B117: 19.35 | C117: 1007527 | D117: 167030 | E117: 11343
A118: 27.04.20 | B118: 19.40 | C118: 1017106 | D118: 168689 | E118: 11238
A119: 27.04.20 | B119: 19.45 | C119: 1026665 | D119: 170373 | E119: 11243
A120: 27.04.20 | B120: 19.50 | C120: 1036236 | D120: 172012 | E120: 11210
A121: 27.04.20 | B121: 19.54 | C121: 1300 | D121: 236 | E121: -1206712
A122: 27.04.20 | B122: 19.55 | C122: 3389 | D122: 719 | E122: 2572
A123: 27.04.20 | B123: 20.00 | C123: 14000 | D123: 3158 | E123: 13050
A124: 27.04.20 | B124: 20.05 | C124: 24860 | D124: 5599 | E124: 13301
A125: 27.04.20 | B125: 20.10 | C125: 35540 | D125: 8165 | E125: 13246
A126: 27.04.20 | B126: 20.15 | C126: 46191 | D126: 10669 | E126: 13155
A127: 27.04.20 | B127: 20.20 | C127: 56980 | D127: 13101 | E127: 13221
A128: 27.04.20 | B128: 20.25 | C128: 67756 | D128: 15513 | E128: 13188
A129: 27.04.20 | B129: 20.30 | C129: 78574 | D129: 17967 | E129: 13272
A130: 27.04.20 | B130: 20.35 | C130: 89380 | D130: 20399 | E130: 13238
A131: 27.04.20 | B131: 20.40 | C131: 100164 | D131: 22702 | E131: 13087
A132: 27.04.20 | B132: 20.45 | C132: 110847 | D132: 25270 | E132: =SUM(C132:D132)-SUM(C131:D131) -> 13251
A133: 27.04.20 | B133: 20.50 | C133: 121522 | D133: 27751 | E133: 13156
A134: 27.04.20 | B134: 20.55 | C134: 132282 | D134: 30118 | E134: 13127
A135: 27.04.20 | B135: 21.00 | C135: 143140 | D135: 32472 | E135: 13212
A136: 27.04.20 | B136: 21.05 | C136: 153846 | D136: 34955 | E136: 13189
A137: 27.04.20 | B137: 21.10 | C137: 164632 | D137: 37350 | E137: 13181
A138: 27.04.20 | B138: 21.15 | C138: 175301 | D138: 39873 | E138: 13192
A139: 27.04.20 | B139: 21.20 | C139: 186025 | D139: 42290 | E139: 13141
A140: 27.04.20 | B140: 21.25 | C140: 196841 | D140: 44698 | E140: 13224
A141: 27.04.20 | B141: 21.30 | C141: 207541 | D141: 47070 | E141: 13072
A142: 27.04.20 | B142: 21.35 | C142: 218237 | D142: 49499 | E142: 13125
A143: 27.04.20 | B143: 21.40 | C143: 228966 | D143: 51930 | E143: 13160
A144: 27.04.20 | B144: 21.45 | C144: 239817 | D144: 54287 | E144: 13208
A145: 27.04.20 | B145: 21.50 | C145: 250544 | D145: 56697 | E145: 13137
A146: 27.04.20 | B146: 21.55 | C146: 261310 | D146: 59091 | E146: 13160
A147: 27.04.20 | B147: 22.00 | C147: 272070 | D147: 61496 | E147: 13165
A148: 27.04.20 | B148: 22.05 | C148: 282844 | D148: 63863 | E148: 13141
A149: 27.04.20 | B149: 22.10 | C149: 293687 | D149: 66268 | E149: 13248
A150: 27.04.20 | B150: 22.15 | C150: 304507 | D150: 68670 | E150: 13222
A151: 27.04.20 | B151: 22.20 | C151: 315281 | D151: 71107 | E151: 13211
A152: 27.04.20 | B152: 22.25 | C152: 326043 | D152: 73478 | E152: 13133
A153: 27.04.20 | B153: 22.30 | C153: 336811 | D153: 75918 | E153: 13208
A154: 27.04.20 | B154: 22.35 | C154: 347541 | D154: 78363 | E154: 13175
A155: 27.04.20 | B155: 22.40 | C155: 358449 | D155: 80716 | E155: 13261
A156: 27.04.20 | B156: 22.45 | C156: 369148 | D156: 83163 | E156: 13146
A157: 27.04.20 | B157: 22.50 | C157: 379939 | D157: 85522 | E157: 13150
A158: 27.04.20 | B158: 22.55 | C158: 390694 | D158: 87949 | E158: 13182
A159: 27.04.20 | B159: 23.00 | C159: 401382 | D159: 90278 | E159: 13017
A160: 27.04.20 | B160: 23.05 | C160: 412277 | D160: 92561 | E160: 13178
A161: 27.04.20 | B161: 23.10 | C161: 423006 | D161: 94997 | E161: 13165
A162: 27.04.20 | B162: 23.15 | C162: 433760 | D162: 97481 | E162: 13238
A163: 27.04.20 | B163: 23.20 | C163: 444453 | D163: 99905 | E163: 13117
A164: 27.04.20 | B164: 23.25 | C164: 455259 | D164: 102265 | E164: 13166
A165: 27.04.20 | B165: 23.30 | C165: 465988 | D165: 104702 | E165: 13166
A166: 27.04.20 | B166: 23.35 | C166: 476791 | D166: 107108 | E166: 13209
A167: 27.04.20 | B167: 23.40 | C167: 487473 | D167: 109612 | E167: 13186
A168: 27.04.20 | B168: 23.45 | C168: 498290 | D168: 111973 | E168: 13178
A169: 27.04.20 | B169: 23.50 | C169: 509037 | D169: 114422 | E169: 13196
A170: 27.04.20 | B170: 23.55 | C170: 519859 | D170: 116814 | E170: 13214
A171: 28.04.20 | B171: 00.00 | C171: 530607 | D171: 119217 | E171: 13151
A172: 28.04.20 | B172: 00.05 | C172: 541337 | D172: 121587 | E172: 13100
A173: 28.04.20 | B173: 00.10 | C173: 552094 | D173: 124013 | E173: 13183
A174: 28.04.20 | B174: 00.15 | C174: 562754 | D174: 126594 | E174: 13241
A175: 28.04.20 | B175: 00.20 | C175: 573436 | D175: 129017 | E175: 13105
A176: 28.04.20 | B176: 00.25 | C176: 584166 | D176: 131398 | E176: 13111
A177: 28.04.20 | B177: 00.30 | C177: 594784 | D177: 133946 | E177: 13166
A178: 28.04.20 | B178: 00.35 | C178: 605539 | D178: 136362 | E178: 13171
A179: 28.04.20 | B179: 00.40 | C179: 616337 | D179: 138761 | E179: 13197
A180: 28.04.20 | B180: 00.45 | C180: 627125 | D180: 141200 | E180: 13227
A181: 28.04.20 | B181: 00.50 | C181: 637792 | D181: 143649 | E181: 13116
A182: 28.04.20 | B182: 00.55 | C182: 648602 | D182: 146032 | E182: 13193
A183: 28.04.20 | B183: 01.00 | C183: 659446 | D183: 148405 | E183: 13217
A184: 28.04.20 | B184: 01.05 | C184: 670184 | D184: 150864 | E184: 13197
A185: 28.04.20 | B185: 01.10 | C185: 680938 | D185: 153260 | E185: 13150
A186: 28.04.20 | B186: 01.15 | C186: 691797 | D186: 155569 | E186: 13168
A187: 28.04.20 | B187: 01.20 | C187: 702624 | D187: 157940 | E187: 13198
A188: 28.04.20 | B188: 01.25 | C188: 713372 | D188: 160298 | E188: 13106
A189: 28.04.20 | B189: 01.30 | C189: 724225 | D189: 162664 | E189: 13219
A190: 28.04.20 | B190: 01.35 | C190: 734973 | D190: 165033 | E190: 13117
A191: 28.04.20 | B191: 01.40 | C191: 745750 | D191: 167441 | E191: 13185
A192: 28.04.20 | B192: 01.45 | C192: 756568 | D192: 169834 | E192: 13211
A193: 28.04.20 | B193: 01.50 | C193: 767401 | D193: 172224 | E193: 13223
A194: 28.04.20 | B194: 01.55 | C194: 778193 | D194: 174638 | E194: 13206
A195: 28.04.20 | B195: 02.00 | C195: 788913 | D195: 177108 | E195: 13190
A196: 28.04.20 | B196: 02.05 | C196: 799650 | D196: 179523 | E196: =SUM(C196:D196)-SUM(C195:D195) -> 13152
A197: 28.04.20 | B197: 02.10 | C197: 810467 | D197: 181889 | E197: 13183
A198: 28.04.20 | B198: 02.15 | C198: 821166 | D198: 184332 | E198: 13142
A199: 28.04.20 | B199: 02.20 | C199: 831869 | D199: 186767 | E199: 13138
A200: 28.04.20 | B200: 02.25 | C200: 842660 | D200: 189127 | E200: 13151
... 572 more rows

Sheet Tabelle3
